fUSD/lending_fUSD_20251103
["ID","MTS","AMOUNT","RATE_DAILY","PERIOD"]
[392976426,1762189852953,-150.78,0.00034835,60]
[392976427,1762189852962,-541.03018028,0.00034849,120]
[392976428,1762189852971,-1078.8,0.00034867,30]
[392976429,1762189852981,-1318.3637646,0.00034877,2]
[392976430,1762189852991,-547.19426724,0.000349,2]
[392976431,1762189853000,-193.41210666,0.00034933,7]
[392976432,1762189853010,-150.99,0.00034933,60]
[392976433,1762189853019,-150.78,0.00034935,60]
[392976434,1762189853029,-157.0,0.0003498,120]
[392976435,1762189853038,-157.0,0.0003499,120]
[392976436,1762189853049,-401.08660229,0.00035,2]
[392976437,1762189853059,-1218.66345077,0.00035,2]
[392976438,1762189853069,-3311.34122555,0.00035,2]
[392976439,1762189853079,-160.0,0.00035,14]
[392976440,1762189853089,-5000.0,0.00035,2]
[392976441,1762189853099,-235.05,0.00035,2]
[392976442,1762189853108,-153.43,0.00035,5]
[392976443,1762189853118,-1009.0,0.00035,15]
[392976444,1762189853127,-10711.20436769,0.00035,2]
[392976445,1762189853137,-150.99,0.00035033,60]
[392976446,1762189853146,-150.78,0.00035035,60]
[392976447,1762189853156,-500.0,0.00035068,2]
[392976448,1762189853166,-4982.88,0.00035068,2]
[392976449,1762189853176,-300.0,0.00035068,2]
[392976450,1762189853186,-1007.08,0.00035068,2]
[392976451,1762189853196,-1000.0,0.00035068,2]
[392976452,1762189853206,-466.47919615,0.00035068,5]
[392976453,1762189853216,-168.93,0.00035129,2]
[392976454,1762189853226,-150.99,0.00035133,60]
[392976455,1762189853236,-150.78,0.00035135,60]
[392976456,1762189853246,-680.81351478,0.00035193,2]
[392976457,1762189853256,-150.99,0.00035233,60]
[392976458,1762189853266,-150.78,0.00035235,60]
[392976459,1762189853280,-150.99,0.00035333,60]
[392976460,1762189853289,-150.78,0.00035335,60]
[392976461,1762189853299,-500.0,0.00035342,2]
[392976462,1762189853311,-4982.88,0.00035342,2]
[392976463,1762189853321,-300.0,0.00035342,2]
[392976464,1762189853331,-1007.08,0.00035342,2]
[392976465,1762189853340,-1000.0,0.00035342,2]
[392976466,1762189853352,-150.99,0.00035433,60]
[392976467,1762189853361,-150.78,0.00035435,60]
[392976468,1762189853371,-459.94195303,0.00035525,2]
[392976469,1762189853381,-150.99,0.00035533,60]
[392976470,1762189853390,-150.78,0.00035535,60]
[392976471,1762189853401,-515.05622278,0.0003559,2]
[392976472,1762189853410,-1425.0,0.00035613,2]
[392976473,1762189853420,-151.0,0.00035613,14]
[392976474,1762189853431,-379.2893,0.00035616,2]
[392976475,1762189853440,-519.03214884,0.00035616,2]
[392976476,1762189853449,-1000.0,0.00035616,2]
[392976477,1762189853459,-1000.0,0.00035616,2]
[392976478,1762189853469,-1000.0,0.00035616,2]
[392976479,1762189853478,-1000.0,0.00035616,2]
[392976480,1762189853487,-305.21841654,0.00035616,2]
[392976481,1762189853497,-4982.88,0.00035616,2]
[392976482,1762189853506,-300.0,0.00035616,2]
[392976483,1762189853516,-1007.08,0.00035616,2]
[392976484,1762189853526,-500.0,0.00035616,2]
[392976485,1762189853538,-1000.0,0.00035616,2]
[392976486,1762189853547,-854.51,0.00035616,2]
[392976487,1762189853557,-2000.0,0.00035616,13]
[392976488,1762189853566,-2000.0,0.00035616,13]
[392976489,1762189853575,-2000.0,0.00035616,13]
[392976490,1762189853584,-2000.0,0.00035616,13]
[392976491,1762189853594,-2000.0,0.00035616,13]
[392976492,1762189853603,-2000.0,0.00035616,13]
[392976493,1762189853613,-2000.0,0.00035616,13]
[392976494,1762189853622,-2000.0,0.00035616,13]
[392976495,1762189853631,-2000.0,0.00035616,13]
[392976496,1762189853640,-2000.0,0.00035616,13]
[392976497,1762189853651,-2000.0,0.00035616,13]
[392976498,1762189853660,-2000.0,0.00035616,13]
[392976499,1762189853669,-2000.0,0.00035616,13]
[392976500,1762189853678,-2000.0,0.00035616,13]
[392976501,1762189853687,-2000.0,0.00035616,13]
[392976502,1762189853696,-2000.0,0.00035616,13]
[392976503,1762189853705,-2000.0,0.00035616,13]
[392976504,1762189853715,-2000.0,0.00035616,13]
[392976505,1762189853725,-2000.0,0.00035616,13]
[392976506,1762189853734,-2000.0,0.00035616,13]
[392976507,1762189853743,-2000.0,0.00035616,13]
[392976508,1762189853753,-2000.0,0.00035616,13]
[392976509,1762189853763,-2000.0,0.00035616,13]
[392976510,1762189853773,-2000.0,0.00035616,13]
[392976511,1762189853782,-2000.0,0.00035616,13]
[392976512,1762189853792,-2000.0,0.00035616,13]
[392976513,1762189853801,-2000.0,0.00035616,13]
[392976514,1762189853811,-2000.0,0.00035616,13]
[392976515,1762189853820,-2000.0,0.00035616,13]
[392976516,1762189853829,-2000.0,0.00035616,13]
[392976517,1762189853838,-2000.0,0.00035616,13]
[392976518,1762189853849,-2000.0,0.00035616,13]
[392976519,1762189853858,-2000.0,0.00035616,13]
[392976520,1762189853867,-2000.0,0.00035616,13]
[392976521,1762189853876,-2000.0,0.00035616,13]
[392976522,1762189853885,-2000.0,0.00035616,13]
[392976523,1762189853895,-2000.0,0.00035616,13]
[392976524,1762189853905,-2000.0,0.00035616,13]
[392976525,1762189853914,-2000.0,0.00035616,13]
[392976526,1762189853924,-2000.0,0.00035616,13]
[392976527,1762189853933,-2000.0,0.00035616,13]
[392976528,1762189853943,-2000.0,0.00035616,13]
[392976529,1762189853952,-2000.0,0.00035616,13]
[392976530,1762189853962,-2000.0,0.00035616,13]
[392976531,1762189853971,-2000.0,0.00035616,13]
[392976532,1762189853981,-2000.0,0.00035616,13]
[392976533,1762189853990,-2000.0,0.00035616,13]
[392976534,1762189853999,-2000.0,0.00035616,13]
[392976535,1762189854009,-2000.0,0.00035616,13]
[392976536,1762189854018,-2000.0,0.00035616,13]
[392976537,1762189854028,-2000.0,0.00035616,13]
[392976538,1762189854037,-2000.0,0.00035616,13]
[392976539,1762189854046,-2000.0,0.00035616,13]
[392976540,1762189854055,-2000.0,0.00035616,13]
[392976541,1762189854064,-2000.0,0.00035616,13]
[392976542,1762189854074,-2000.0,0.00035616,13]
[392976543,1762189854084,-2000.0,0.00035616,13]
[392976544,1762189854093,-2000.0,0.00035616,13]
[392976545,1762189854103,-2000.0,0.00035616,13]
[392976546,1762189854113,-2000.0,0.00035616,13]
[392976547,1762189854123,-301.0,0.00035616,13]
[392976548,1762189854133,-210.61899485,0.00035632,120]
[392976549,1762189854142,-150.99,0.00035633,60]
[392976550,1762189854154,-150.78,0.00035635,60]
[392976551,1762189854164,-150.99,0.00035733,60]
[392976552,1762189854174,-150.78,0.00035735,60]
[392976553,1762189854183,-19692.42779915,0.0003577,2]
[392976554,1762189854193,-177.0,0.00035799,120]
[392976555,1762189854203,-1000.0,0.000358,2]
[392976556,1762189854213,-158.80268838,0.00035803,2]
[392976557,1762189854224,-208.76484366,0.00035803,2]
[392976558,1762189854233,-150.99,0.00035833,60]
[392976559,1762189854243,-150.78,0.00035835,60]
[392976560,1762189854252,-1025.91147702,0.0003589,2]
[392976561,1762189854263,-1000.0,0.0003589,2]
[392976562,1762189854276,-511.9,0.0003589,2]
[392976563,1762189854286,-4982.88,0.0003589,2]
[392976564,1762189854296,-300.0,0.0003589,2]
[392976565,1762189854307,-1007.08,0.0003589,2]
[392976566,1762189854316,-1000.0,0.0003589,2]
[392976567,1762189854326,-153.68323784,0.000359,30]
[392976568,1762189854337,-153.68323784,0.000359,30]
[392976569,1762189854347,-153.68323784,0.000359,30]
[392976570,1762189854357,-153.68323784,0.000359,30]
[392976571,1762189854367,-153.68323784,0.000359,30]
[392976572,1762189854377,-153.68323784,0.000359,30]
[392976573,1762189854387,-153.68323784,0.000359,30]
[392976574,1762189854397,-153.68323784,0.000359,30]
[392976575,1762189854407,-153.68323784,0.000359,30]
[392976576,1762189854416,-153.68323784,0.000359,30]
[392976577,1762189854426,-153.68323784,0.000359,30]
[392976578,1762189854436,-153.68323784,0.000359,30]
[392976579,1762189854446,-153.68323784,0.000359,30]
[392976580,1762189854456,-153.68323784,0.000359,30]
[392976581,1762189854465,-153.68323784,0.000359,30]
[392976582,1762189854475,-153.68323784,0.000359,30]
[392976583,1762189854521,-153.68323784,0.000359,30]
[392976584,1762189854531,-153.68323784,0.000359,30]
[392976585,1762189854541,-153.68,0.000359,30]
[392976586,1762189854550,-340.66451054,0.000359,30]
[392976587,1762189854559,-340.66451054,0.000359,30]
[392976588,1762189854568,-340.66451054,0.000359,30]
[392976589,1762189854577,-340.66451054,0.000359,30]
[392976590,1762189854587,-340.66451054,0.000359,30]
[392976591,1762189854596,-340.66451054,0.000359,30]
[392976592,1762189854605,-340.66451054,0.000359,30]
[392976593,1762189854614,-340.66451054,0.000359,30]
[392976594,1762189854625,-340.66451054,0.000359,30]
[392976595,1762189854634,-340.66451054,0.000359,30]
[392976596,1762189854644,-340.66451054,0.000359,30]
[392976597,1762189854655,-340.66451054,0.000359,30]
[392976598,1762189854664,-340.66451054,0.000359,30]
[392976599,1762189854673,-340.66451054,0.000359,30]
[392976600,1762189854682,-340.66451054,0.000359,30]
[392976601,1762189854691,-340.66451054,0.000359,30]
[392976602,1762189854699,-340.66451054,0.000359,30]
[392976603,1762189854708,-238.99551242,0.000359,30]
[392976604,1762189854717,-238.99551242,0.000359,30]
[392976605,1762189854726,-238.99551242,0.000359,30]
[392976606,1762189854735,-238.99551242,0.000359,30]
[392976607,1762189854744,-238.99551242,0.000359,30]
[392976608,1762189854753,-238.99551242,0.000359,30]
[392976609,1762189854763,-238.99551242,0.000359,30]
[392976610,1762189854772,-238.99551242,0.000359,30]
[392976611,1762189854781,-238.99551242,0.000359,30]
[392976612,1762189854790,-238.99551242,0.000359,30]
[392976613,1762189854799,-238.99551242,0.000359,30]
[392976614,1762189854807,-238.99551242,0.000359,30]
[392976615,1762189854817,-238.99551242,0.000359,30]
[392976616,1762189854826,-238.99551242,0.000359,30]
[392976617,1762189854835,-238.99551242,0.000359,30]
[392976618,1762189854844,-238.99551242,0.000359,30]
[392976619,1762189854852,-238.99551242,0.000359,30]
[392976620,1762189854861,-238.99551242,0.000359,30]
[392976621,1762189854870,-238.99551242,0.000359,30]
[392976622,1762189854880,-238.99,0.000359,30]
[392976623,1762189854890,-557.65619565,0.000359,30]
[392976624,1762189854901,-557.65619565,0.000359,30]
[392976625,1762189854910,-557.65619565,0.000359,30]
[392976626,1762189854920,-557.65619565,0.000359,30]
[392976627,1762189854929,-557.65619565,0.000359,30]
[392976628,1762189854938,-557.65619565,0.000359,30]
[392976629,1762189854947,-557.65619565,0.000359,30]
[392976630,1762189854955,-557.65619565,0.000359,30]
[392976631,1762189854965,-557.65619565,0.000359,30]
[392976632,1762189854974,-557.65619565,0.000359,30]
[392976633,1762189854983,-557.65619565,0.000359,30]
[392976634,1762189854992,-557.65619565,0.000359,30]
[392976635,1762189855001,-557.65619565,0.000359,30]
[392976636,1762189855010,-557.65619565,0.000359,30]
[392976637,1762189855019,-557.65619565,0.000359,30]
[392976638,1762189855028,-557.65619565,0.000359,30]
[392976639,1762189855037,-557.65619565,0.000359,30]
[392976640,1762189855046,-500.0,0.00035906,7]
[392976641,1762189855056,-208.03,0.00035906,7]
[392976642,1762189855065,-201.37,0.00035906,7]
[392976643,1762189855074,-150.99,0.00035933,60]
[392976644,1762189855083,-150.78,0.00035935,60]
[392976645,1762189855093,-3167.86802257,0.00035973,8]
[392976646,1762189855102,-162.36,0.0003598,120]
[392976647,1762189855111,-157.0,0.0003599,120]
[392976648,1762189855121,-500.0,0.00035999,2]
[392976649,1762189855130,-500.0,0.00035999,2]
[392976650,1762189855139,-253.26417705,0.00036,3]
[392976651,1762189855150,-30718.74421785,0.00036,12]
[392976652,1762189855159,-5500.0,0.00036,15]
[392976653,1762189855168,-10697.29043415,0.00036,2]
[392976654,1762189855177,-50155.89626618,0.00036,6]
[392976655,1762189855187,-151.0,0.00036,7]
[392976656,1762189855196,-150.0,0.00036,5]
[392976657,1762189855206,-300000.0,0.00036,2]
[392976658,1762189855215,-93306.63238477,0.00036,2]
[392976659,1762189855224,-1518.4,0.00036,2]
[392976660,1762189855234,-160.72410049,0.00036,2]
[392976661,1762189855242,-2000.0,0.00036,2]
[392976662,1762189855251,-181.06144846,0.00036,2]
[392976663,1762189855262,-819.51,0.00036,14]
[392976664,1762189855275,-150.99,0.00036033,60]
[392976665,1762189855284,-150.78,0.00036035,60]
[392976666,1762189855293,-150.99,0.00036133,60]
[392976667,1762189855302,-150.78,0.00036135,60]
[392976668,1762189855311,-340.66451054,0.00036137,30]
[392976669,1762189855322,-557.65619565,0.00036137,30]
[392976670,1762189855331,-1000.0,0.00036164,2]
[392976671,1762189855341,-4982.88,0.00036164,2]
[392976672,1762189855351,-233.69472268,0.00036164,2]
[392976673,1762189855361,-1007.08,0.00036164,2]
[392976674,1762189855371,-1000.0,0.00036164,2]
[392976675,1762189855381,-2525.314999,0.000362,22]
[392976676,1762189855390,-1425.0,0.00036231,2]
[392976677,1762189855400,-150.99,0.00036233,60]
[392976678,1762189855410,-150.78,0.00036235,60]
[392976679,1762189855419,-1425.0,0.00036238,2]
[392976680,1762189855429,-150.99,0.00036333,60]
[392976681,1762189855439,-150.78,0.00036335,60]
[392976682,1762189855448,-229.89604516,0.0003637,16]
[392976683,1762189855457,-150.99,0.00036433,60]
[392976684,1762189855466,-150.78,0.00036435,60]
[392976685,1762189855475,-1000.0,0.00036437,2]
[392976686,1762189855484,-1000.0,0.00036438,2]
[392976687,1762189855494,-4983.08267672,0.00036438,2]
[392976688,1762189855503,-1007.23831376,0.00036438,2]
[392976689,1762189855513,-1000.0,0.00036438,2]
[392976690,1762189855522,-340.66451054,0.00036506,30]
[392976691,1762189855532,-557.65619565,0.00036506,30]
[392976692,1762189855541,-1425.0,0.0003651,2]
[392976693,1762189855550,-150.99,0.00036533,60]
[392976694,1762189855560,-150.78,0.00036535,60]
[392976695,1762189855569,-1425.0,0.00036545,2]
[392976696,1762189855578,-150.99,0.00036633,60]
[392976697,1762189855588,-150.78,0.00036635,60]
[392976698,1762189855597,-1425.0,0.00036639,2]
[392976699,1762189855607,-500.0,0.0003666,15]
[392976700,1762189855615,-1425.0,0.00036664,2]
[392976701,1762189855624,-644.71142354,0.00036696,2]
[392976702,1762189855633,-644.71142354,0.00036696,2]
[392976703,1762189855643,-1500.0,0.000367,22]
[392976704,1762189855653,-1000.0,0.00036711,2]
[392976705,1762189855663,-1000.0,0.00036712,2]
[392976706,1762189855672,-1000.0,0.00036712,2]
[392976707,1762189855682,-206.95849334,0.00036728,120]
[392976708,1762189855691,-150.99,0.00036733,60]
[392976709,1762189855700,-150.78,0.00036735,60]
[392976710,1762189855708,-890.41706766,0.0003676,2]
[392976711,1762189855718,-500.0,0.00036772,2]
[392976712,1762189855727,-500.0,0.00036772,2]
[392976713,1762189855736,-500.0,0.00036772,2]
[392976714,1762189855745,-1425.0,0.00036775,2]
[392976715,1762189855755,-194.0,0.0003679,7]
[392976716,1762189855764,-362.89082893,0.0003679,2]
[392976717,1762189855773,-500.0,0.00036799,2]
[392976718,1762189855782,-500.0,0.00036799,2]
[392976719,1762189855791,-291.51086275,0.00036799,2]
[392976720,1762189855801,-1585.95455537,0.000368,2]
[392976721,1762189855810,-150.99,0.00036833,60]
[392976722,1762189855819,-150.78,0.00036835,60]
[392976723,1762189855828,-1318.3637646,0.00036872,2]
[392976724,1762189855838,-680.81351478,0.00036872,2]
[392976725,1762189855848,-162.64979156,0.00036872,15]
[392976726,1762189855858,-158.80268838,0.00036872,2]
[392976727,1762189855867,-208.76484366,0.00036872,2]
[392976728,1762189855876,-459.94195303,0.00036873,2]
[392976729,1762189855886,-340.66,0.00036875,30]
[392976730,1762189855896,-557.65,0.00036875,30]
[392976731,1762189855906,-41666.40583993,0.000369,5]
[392976732,1762189855915,-13907.83717681,0.0003691,2]
[392976733,1762189855925,-150.99,0.00036933,60]
[392976734,1762189855934,-150.78,0.00036935,60]
[392976735,1762189855943,-151.0,0.00036969,14]
[392976736,1762189855953,-368.0945557,0.00036972,31]
[392976737,1762189855962,-146313.42441879,0.00036972,2]
[392976738,1762189855971,-1610.11063972,0.00036972,10]
[392976739,1762189855979,-10804.51030099,0.00036972,3]
[392976740,1762189855988,-2027.0860445,0.00036972,5]
[392976741,1762189855997,-29267.27521194,0.00036972,2]
[392976742,1762189856006,-218412.01353485,0.00036972,2]
[392976743,1762189856015,-1094.39447266,0.00036972,7]
[392976744,1762189856023,-9383.1680401,0.00036972,2]
[392976745,1762189856032,-1221.0,0.00036972,4]
[392976746,1762189856041,-1000.0,0.00036972,10]
[392976747,1762189856050,-3475.45449105,0.00036972,2]
[392976748,1762189856058,-23177.22500773,0.00036972,2]
[392976749,1762189856067,-13034.77214542,0.00036972,2]
[392976750,1762189856076,-15141.22309924,0.00036972,3]
[392976751,1762189856085,-2003.20734651,0.00036972,4]
[392976752,1762189856093,-805282.7855385,0.00036972,2]
[392976753,1762189856102,-924862.94283054,0.00036972,2]
[392976754,1762189856111,-550.0,0.00036972,2]
[392976755,1762189856120,-1024.92878606,0.00036972,2]
[392976756,1762189856129,-6790.07966417,0.00036972,2]
[392976757,1762189856359,-1020.0,0.00023526,2]
[392976758,1762189908215,-161.0,0.000189,2]
[392976759,1762189923694,-161.0,0.000189,2]
[392976762,1762190042813,-161.0,0.00016712,2]
[392976763,1762190149703,-4.57,0.00016712,2]
[392976764,1762190149730,-156.43,0.00018688,2]
[392976766,1762190707731,429375.84334258,0.00015,2]
[392976769,1762190733567,15151.02526082,0.000147,2]
[392976776,1762190874177,50000.0,0.00015,2]
[392976777,1762190884527,700.1531496,0.00015,2]
[392976792,1762191032280,-1200.0,0.00015389,2]
[392976794,1762191032291,-250.0,0.00015389,2]
[392976795,1762191032301,-2500.0,0.00015389,2]
[392976796,1762191032310,-300.0,0.0001539,2]
[392976797,1762191032320,-300.0,0.0001539,2]
[392976798,1762191032329,-2764.60000004,0.0001539,2]
[392976799,1762191032341,-1070.0,0.0001539,2]
[392976800,1762191032553,-20124.54471804,0.0001539,2]
[392976801,1762191032563,-250.0,0.00015443,2]
[392976802,1762191032572,-151.0,0.00015581,2]
[392976803,1762191032582,-414.41014256,0.00015659,2]
[392976804,1762191032592,-500.0,0.0001575,2]
[392976805,1762191032601,-236.37597321,0.00016036,2]
[392976806,1762191032611,-300.0,0.00016036,2]
[392976807,1762191032623,-291.89355651,0.00016036,2]
[392976808,1762191032634,-953.15308852,0.000162,5]
[392976809,1762191032643,-500.0,0.00016298,2]
[392976810,1762191032653,-500.0,0.000165,2]
[392976811,1762191032662,-200.0,0.00016683,2]
[392976812,1762191032674,-408.33492072,0.0001682,2]
[392976813,1762191032683,-500.0,0.0001682,2]
[392976814,1762191032696,-500.0,0.0001682,2]
[392976815,1762191032706,-500.0,0.0001682,2]
[392976816,1762191032716,-164.03076053,0.0001682,2]
[392976817,1762191032726,-500.0,0.0001682,2]
[392976818,1762191032735,-500.0,0.0001682,2]
[392976819,1762191032744,-516.43133353,0.0001682,2]
[392976820,1762191032754,-500.0,0.0001682,2]
[392976821,1762191032763,-500.0,0.0001682,2]
[392976823,1762191032772,-500.0,0.0001682,2]
[392976825,1762191032781,-500.0,0.0001682,2]
[392976827,1762191032790,-500.0,0.0001682,2]
[392976828,1762191032799,-200.0,0.0001688,2]
[392976830,1762191032808,-1680.0,0.00016921,2]
[392976832,1762191032818,-300.0,0.00016928,2]
[392976834,1762191032827,-300.0,0.00016928,2]
[392976836,1762191032836,-2500.0,0.00016928,2]
[392976838,1762191032845,-250.0,0.00016928,2]
[392976840,1762191032855,-500.0,0.00017048,2]
[392976841,1762191032864,-361.82,0.00017064,2]
[392976843,1762191032873,-157.14,0.00017108,2]
[392976844,1762191032883,-166.66,0.00017259,2]
[392976845,1762191032892,-1000.0,0.00017368,2]
[392976846,1762191032902,-500.0,0.00017368,2]
[392976847,1762191032911,-500.0,0.00017368,2]
[392976848,1762191032921,-500.0,0.00017368,2]
[392976849,1762191032930,-500.0,0.00017517,2]
[392976850,1762191032939,-500.0,0.00017517,2]
[392976851,1762191032949,-500.0,0.00017517,2]
[392976852,1762191032959,-500.0,0.00017517,2]
[392976853,1762191032970,-500.0,0.00017517,2]
[392976854,1762191032980,-500.0,0.00017517,2]
[392976855,1762191032989,-500.0,0.00017517,2]
[392976856,1762191032998,-433.60745255,0.00017517,2]
[392976857,1762191033008,-500.0,0.00017517,2]
[392976858,1762191033018,-500.0,0.00017517,2]
[392976859,1762191033027,-500.0,0.00017517,2]
[392976860,1762191033036,-500.0,0.00017517,2]
[392976861,1762191033046,-500.0,0.00017517,2]
[392976862,1762191033056,-500.0,0.00017517,2]
[392976863,1762191033065,-121077.44200921,0.00017518,2]
[392976866,1762191038306,-169.45183661,0.00017517,2]
[392976867,1762191038316,-540.46415423,0.00017518,2]
[392976868,1762191038326,-166.66,0.00017829,2]
[392976869,1762191038336,-1317.4149328,0.000179,2]
[392976870,1762191038362,-1545.41177589,0.000179,2]
[392976871,1762191038372,-1500.0,0.00017916,2]
[392976872,1762191038382,-883.62180574,0.00018,2]
[392976873,1762191038392,-1762.30589658,0.000181,2]
[392976874,1762191038401,-166.66,0.00018398,2]
[392976875,1762191038411,-573.07603199,0.00018464,2]
[392976876,1762191038471,-1556.56110642,0.00018464,2]
[392976877,1762191038484,-176.49037187,0.0001859,2]
[392976878,1762191038495,-158.6333373,0.0001859,2]
[392976879,1762191038505,-923.39489231,0.0001859,2]
[392976880,1762191038515,-7155.8704,0.0001859,2]
[392976881,1762191038526,-2351.0,0.00018605,2]
[392976882,1762191038536,-160.0,0.00018654,2]
[392976883,1762191038546,-500.0,0.00018673,2]
[392976884,1762191038556,-500.0,0.00018673,2]
[392976885,1762191038566,-500.0,0.00018673,2]
[392976886,1762191038576,-500.0,0.00018673,2]
[392976888,1762191038586,-500.11558299,0.00018673,2]
[392976890,1762191038597,-500.0,0.00018673,2]
[392976891,1762191038607,-500.0,0.00018673,2]
[392976892,1762191038617,-511.4774966,0.00018673,2]
[392976893,1762191038632,-164.34626945,0.00018673,2]
[392976895,1762191038643,-500.0,0.00018673,2]
[392976897,1762191038653,-500.0,0.00018673,2]
[392976899,1762191038663,-500.0,0.00018673,2]
[392976901,1762191038673,-370.90412366,0.00018673,2]
[392976903,1762191038683,-500.0,0.00018673,2]
[392976905,1762191038692,-501.4870916,0.00018673,2]
[392976907,1762191038702,-500.0,0.00018673,2]
[392976909,1762191038713,-500.0,0.00018673,2]
[392976911,1762191038722,-500.0,0.00018673,2]
[392976912,1762191038734,-500.0,0.00018673,2]
[392976915,1762191038744,-500.0,0.00018673,2]
[392976916,1762191038754,-151.0,0.00018679,2]
[392976918,1762191038764,-151.0,0.00018679,2]
[392976919,1762191038774,-151.0,0.00018679,2]
[392976920,1762191038783,-151.0,0.00018679,2]
[392976921,1762191038793,-151.0,0.00018679,2]
[392976922,1762191038803,-151.0,0.00018679,2]
[392976923,1762191038812,-151.0,0.00018679,2]
[392976924,1762191038821,-151.0,0.00018679,2]
[392976925,1762191038831,-151.0,0.00018679,2]
[392976926,1762191038840,-151.0,0.00018679,2]
[392976927,1762191038850,-151.0,0.00018679,2]
[392976928,1762191038860,-151.0,0.00018679,2]
[392976929,1762191038870,-151.0,0.00018679,2]
[392976930,1762191038880,-151.0,0.00018679,2]
[392976931,1762191038889,-151.0,0.00018679,2]
[392976932,1762191038899,-151.0,0.00018679,2]
[392976933,1762191038910,-151.0,0.00018679,2]
[392976934,1762191038919,-151.0,0.00018679,2]
[392976935,1762191038929,-151.0,0.00018679,2]
[392976936,1762191038939,-151.0,0.00018679,2]
[392976937,1762191038948,-151.0,0.00018679,2]
[392976938,1762191038958,-151.0,0.00018679,2]
[392976939,1762191038968,-151.0,0.00018679,2]
[392976940,1762191038980,-151.0,0.00018679,2]
[392976941,1762191038990,-151.0,0.00018679,2]
[392976942,1762191039000,-151.0,0.00018679,2]
[392976943,1762191039010,-151.0,0.00018679,2]
[392976944,1762191039020,-151.0,0.00018679,2]
[392976945,1762191039029,-151.0,0.00018679,2]
[392976946,1762191039039,-151.0,0.00018679,2]
[392976947,1762191039048,-151.0,0.00018679,2]
[392976948,1762191039058,-151.0,0.00018679,2]
[392976949,1762191039067,-151.0,0.00018679,2]
[392976950,1762191039077,-151.0,0.00018679,2]
[392976951,1762191039086,-151.0,0.00018679,2]
[392976952,1762191039096,-151.0,0.00018679,2]
[392976953,1762191039105,-151.0,0.00018679,2]
[392976954,1762191039115,-151.0,0.00018679,2]
[392976955,1762191039124,-151.0,0.00018679,2]
[392976956,1762191039134,-151.0,0.00018679,2]
[392976957,1762191039143,-304.87,0.00018689,2]
[392976958,1762191039153,-420000.0,0.0001869,2]
[392976959,1762191039163,-19999.99,0.0001869,2]
[392976960,1762191039173,-15223.82,0.0001869,2]
[392976961,1762191039183,-200.0,0.00018848,2]
[392976962,1762191039193,-678.0,0.000189,2]
[392976963,1762191039203,-304.87,0.00018963,2]
[392976964,1762191039213,-166.66,0.00018968,2]
[392976965,1762191039223,-500.0,0.00018999,2]
[392976966,1762191039234,-500.0,0.00018999,2]
[392976967,1762191039244,-500.0,0.00018999,2]
[392976968,1762191039254,-509.70539372,0.00018999,2]
[392976969,1762191039264,-500.0,0.00018999,2]
[392976970,1762191039275,-500.0,0.00018999,2]
[392976971,1762191039284,-500.0,0.00018999,2]
[392976972,1762191039294,-500.0,0.00018999,2]
[392976973,1762191039304,-500.0,0.00018999,2]
[392976974,1762191039314,-500.0,0.00018999,2]
[392976975,1762191039324,-1387.90342288,0.00019,2]
[392976976,1762191039334,-800.17720091,0.00019,3]
[392976977,1762191039343,-500.0,0.00019221,2]